bitfinex-derivatives/quotes_BTCF0:USTF0_20251111
["timestamp","ask_amount","ask_price","bid_price","bid_amount"]
[1762897566899,0.5128904,102600.0,102590.0,0.15854013]
[1762897567103,0.5128904,102600.0,102590.0,0.16073816]
[1762897567501,0.41539,102600.0,102590.0,0.28124806]
[1762897567810,0.78715962,102600.0,102590.0,0.30423806]
[1762897568007,0.78715962,102600.0,102590.0,0.30823806]
[1762897568212,0.88466002,102600.0,102590.0,0.30823806]
[1762897568409,0.51298002,102600.0,102590.0,0.30823806]
[1762897568712,0.88466002,102600.0,102590.0,0.30823806]
[1762897568908,0.78715962,102600.0,102590.0,0.30823806]
[1762897569297,0.41547962,102600.0,102590.0,0.30823806]
[1762897569615,0.78715962,102600.0,102590.0,0.30823806]
[1762897569913,0.78715962,102600.0,102590.0,0.47978221]
[1762897570416,0.77792962,102600.0,102590.0,0.47978221]
[1762897570600,0.40624962,102600.0,102590.0,0.47978221]
[1762897572611,8.962e-05,102600.0,102590.0,0.47978221]
[1762897573416,0.04544962,102600.0,102590.0,0.47978221]
[1762897574119,0.40624962,102600.0,102590.0,0.47978221]
[1762897574313,0.04544962,102600.0,102590.0,0.47978221]
[1762897575323,0.40624962,102600.0,102590.0,0.47978221]
[1762897575513,0.04544962,102600.0,102590.0,0.47978221]
[1762897575824,8.962e-05,102600.0,102590.0,0.47978221]
[1762897577624,8.962e-05,102600.0,102590.0,0.84058221]
[1762897577923,8.962e-05,102600.0,102590.0,0.47978221]
[1762897578626,0.40624962,102600.0,102590.0,0.47978221]
[1762897580329,0.04544962,102600.0,102590.0,0.47978221]
[1762897580524,0.40624962,102600.0,102590.0,0.47978221]
[1762897580920,0.04544962,102600.0,102590.0,0.47978221]
[1762897581125,0.40624962,102600.0,102590.0,0.47978221]
[1762897581733,0.40624962,102600.0,102590.0,0.38227231]
[1762897581734,0.41909962,102600.0,102590.0,0.38227231]
[1762897582026,0.51660002,102600.0,102590.0,0.18773816]
[1762897582229,0.53879758,102600.0,102590.0,0.18773816]
[1762897582432,0.53879758,102600.0,102590.0,0.16473816]
[1762897582833,0.53879758,102600.0,102560.0,0.63500363]
[1762897582834,0.04447,102570.0,102560.0,0.57891606]
[1762897583036,0.04447,102570.0,102560.0,0.90878239]
[1762897583428,0.40527,102570.0,102560.0,0.59199409]
[1762897583735,0.40527,102570.0,102560.0,0.99698378]
[1762897583736,9.066e-05,102570.0,102560.0,0.99698378]
[1762897584131,0.04456066,102570.0,102560.0,1.00098378]
[1762897584339,0.04556066,102570.0,102560.0,0.74905633]
[1762897584638,0.04556066,102570.0,102560.0,0.84659483]
[1762897585228,0.04556066,102570.0,102560.0,1.00498898]
[1762897585533,0.04556066,102570.0,102560.0,0.84659483]
[1762897585835,0.04556066,102570.0,102560.0,1.00498898]
[1762897586938,0.04556066,102570.0,102560.0,0.92612211]
[1762897587133,0.02332066,102570.0,102560.0,0.92612211]
[1762897587341,0.02332066,102570.0,102560.0,0.72796432]
[1762897587729,0.04556066,102570.0,102560.0,0.72796432]
[1762897588238,0.40636066,102570.0,102560.0,0.72796432]
[1762897589630,0.04556066,102570.0,102560.0,0.72796432]
[1762897592037,0.04556066,102570.0,102560.0,0.63042582]
[1762897592440,0.04556066,102570.0,102560.0,0.72796422]
[1762897594742,0.40636066,102570.0,102560.0,0.72796422]
[1762897596134,0.38412066,102570.0,102560.0,0.92612201]
[1762897596940,0.36189066,102570.0,102560.0,0.92612201]
[1762897597541,0.00109066,102570.0,102560.0,0.92612201]
[1762897600643,0.04556066,102570.0,102560.0,0.92612201]
[1762897601842,0.02332066,102570.0,102560.0,0.92612201]
[1762897602044,0.00109066,102570.0,102560.0,0.92612201]
[1762897602741,0.00109066,102570.0,102560.0,1.28692201]
[1762897603446,0.00109066,102570.0,102560.0,1.35711477]
[1762897604133,0.00014598,102580.0,102570.0,0.1542689]
[1762897604334,0.40527,102600.0,102590.0,0.05674]
[1762897604543,0.40527,102600.0,102590.0,0.72628572]
[1762897605138,0.5156204,102600.0,102590.0,0.00219803]
[1762897605335,0.5156204,102600.0,102590.0,0.02379803]
[1762897605537,0.53785582,102600.0,102590.0,0.04519803]
[1762897605842,0.53785582,102600.0,102590.0,0.04619803]
[1762897606944,0.53785582,102600.0,102590.0,0.04719803]
[1762897607246,0.90953582,102600.0,102590.0,0.002]
[1762897609044,0.1540099,102590.0,102580.0,0.00014598]
[1762897609343,0.69557668,102590.0,102580.0,0.09766538]
[1762897609643,0.53704532,102590.0,102580.0,0.15867734]
[1762897610243,0.53804532,102590.0,102580.0,0.15867734]
[1762897610548,0.53904532,102590.0,102580.0,0.25619674]
[1762897610746,0.53904532,102590.0,102580.0,0.09766538]
[1762897610947,0.53904532,102590.0,102580.0,0.25619674]
[1762897611650,0.53904532,102590.0,102580.0,0.15867734]
[1762897611851,0.53904532,102590.0,102580.0,0.25619674]
[1762897612239,0.53904532,102590.0,102580.0,0.30044674]
[1762897612443,0.53904532,102590.0,102580.0,0.27999477]
[1762897612844,0.53904532,102590.0,102580.0,0.12146341]
[1762897613267,0.53904532,102590.0,102580.0,0.02394401]
[1762897613752,0.53904532,102590.0,102580.0,0.00234401]
[1762897613948,0.53904532,102590.0,102580.0,0.09986341]
[1762897615848,0.53904532,102590.0,102580.0,0.14509341]
[1762897616049,0.53904532,102590.0,102580.0,0.30363454]
[1762897617849,0.53904542,102590.0,102580.0,0.30363454]
[1762897618648,0.53904542,102590.0,102580.0,0.31715454]
[1762897620052,0.42950542,102590.0,102580.0,0.31715454]
[1762897620255,0.52701542,102590.0,102580.0,0.31715454]
[1762897620555,0.54080542,102590.0,102580.0,0.31715454]
[1762897621055,0.54080542,102590.0,102580.0,0.20611514]
[1762897621253,0.54080542,102590.0,102580.0,0.31638464]
[1762897622556,0.44329542,102590.0,102580.0,0.31638464]
[1762897622952,0.42950542,102590.0,102580.0,0.31638464]
[1762897623348,0.53811542,102590.0,102580.0,0.21886514]
[1762897623549,0.53811542,102590.0,102580.0,0.31638464]
[1762897624262,0.40727,102590.0,102580.0,0.31638464]
[1762897624450,0.002,102590.0,102580.0,0.7582174]
[1762897624658,0.3608,102600.0,102590.0,0.15413]
[1762897624851,0.38208,102600.0,102590.0,0.54354339]
[1762897625046,0.40376,102600.0,102590.0,0.12895113]
[1762897625248,0.40376,102600.0,102590.0,0.38500226]
[1762897625557,0.40376,102600.0,102590.0,0.28749226]
[1762897625755,0.40376,102600.0,102590.0,0.04606803]
[1762897625756,0.5170505,102600.0,102590.0,0.04606803]
[1762897625949,0.5170505,102600.0,102590.0,0.58899916]
[1762897626354,0.5170505,102600.0,102590.0,0.57624916]
[1762897626752,0.5170505,102600.0,102590.0,0.21735916]
[1762897626958,0.5170505,102600.0,102590.0,0.57620916]
[1762897627559,0.5150505,102600.0,102590.0,0.57620916]
[1762897628358,0.5150505,102600.0,102590.0,0.67371916]
[1762897628656,0.5150505,102600.0,102590.0,0.68646916]
[1762897628852,0.40376,102600.0,102590.0,0.68646916]
[1762897629459,0.40376,102600.0,102590.0,0.31486916]
[1762897629754,0.5150505,102600.0,102590.0,0.20460916]
[1762897630754,0.53733301,102600.0,102590.0,0.20460916]
[1762897630955,0.5150505,102600.0,102590.0,0.20460916]
[1762897631162,0.5150505,102600.0,102590.0,0.00219803]
[1762897631163,0.8866505,102600.0,102590.0,0.00219803]
[1762897631363,0.8866505,102600.0,102590.0,0.25824916]
[1762897631364,0.90893017,102600.0,102590.0,0.25824916]
[1762897631565,0.77536,102600.0,102590.0,0.31486916]
[1762897632064,0.40376,102600.0,102590.0,0.31486916]
[1762897632363,0.77636,102600.0,102590.0,0.31486916]
[1762897632663,0.77736,102600.0,102590.0,0.31486916]
[1762897633464,0.77732,102600.0,102590.0,0.31486916]
[1762897634264,0.40576,102600.0,102590.0,0.31486916]
[1762897635357,0.40476,102600.0,102590.0,0.31486916]
[1762897635757,0.40476,102600.0,102590.0,0.21735916]
[1762897635758,0.5012605,102600.0,102590.0,0.21735916]
[1762897635966,0.5012605,102600.0,102590.0,0.31486916]
[1762897636266,0.40376,102600.0,102590.0,0.31486916]
[1762897636969,0.3608,102600.0,102590.0,0.31486916]
[1762897637557,0.36094598,102610.0,102600.0,0.1541205]
[1762897637558,0.40390598,102610.0,102600.0,0.1541205]
[1762897637758,0.40390598,102610.0,102600.0,0.31485966]
[1762897637958,0.40390598,102610.0,102600.0,0.47340079]
[1762897638166,0.40390598,102610.0,102600.0,0.84496079]
[1762897638557,0.40390598,102610.0,102600.0,0.68641966]
[1762897638558,0.40490598,102610.0,102600.0,0.68641966]
[1762897639063,0.36294598,102610.0,102600.0,0.84496079]
[1762897639263,0.37079211,102610.0,102600.0,0.84496079]
[1762897640066,0.47914311,102610.0,102600.0,0.58891916]
[1762897640866,0.47914311,102610.0,102600.0,0.58887916]
[1762897641861,0.47914311,102610.0,102600.0,0.02467803]
[1762897642060,0.85066311,102610.0,102600.0,0.02467803]
[1762897642461,0.85066311,102610.0,102600.0,0.04744803]
[1762897642760,0.85066311,102610.0,102600.0,0.20598916]
[1762897642961,0.85066311,102610.0,102600.0,0.30348966]
[1762897643361,0.85066311,102610.0,102600.0,0.04744803]
[1762897643962,0.85066311,102610.0,102600.0,0.14494853]
[1762897644269,0.74031211,102610.0,102600.0,0.31708966]
[1762897644861,0.36879211,102610.0,102600.0,0.31708966]
[1762897648162,0.40544598,102620.0,102610.0,0.156971]
[1762897648360,0.40544598,102620.0,102610.0,0.31771016]
[1762897649063,0.50971748,102620.0,102610.0,0.00219803]
[1762897649367,0.51071748,102620.0,102610.0,0.22021916]
[1762897649759,0.51171748,102620.0,102610.0,0.22021916]
[1762897649955,0.51171748,102620.0,102610.0,0.04807803]
[1762897651270,0.51171748,102620.0,102610.0,0.14556903]
[1762897651466,0.43618458,102620.0,102610.0,0.14556903]
[1762897651661,0.41423598,102620.0,102610.0,0.30411016]
[1762897651858,0.51171748,102620.0,102610.0,0.30411016]
[1762897652469,0.41423598,102620.0,102610.0,0.30411016]
[1762897652769,0.41423598,102620.0,102610.0,0.31771016]
[1762897652968,0.51171748,102620.0,102610.0,0.31771016]
[1762897653362,0.51071748,102620.0,102610.0,0.31771016]
[1762897654162,0.50971748,102620.0,102610.0,0.22021916]
[1762897654469,0.50971748,102620.0,102610.0,0.30411016]
[1762897655965,0.50971748,102620.0,102610.0,0.20661916]
[1762897656564,0.53167663,102620.0,102610.0,0.20661916]
[1762897656970,0.50971748,102620.0,102610.0,0.30411016]
[1762897657272,0.53167731,102620.0,102610.0,0.30411016]
[1762897658060,0.53167731,102620.0,102610.0,0.20661916]
[1762897659174,0.53167731,102620.0,102610.0,0.30411016]
[1762897659763,0.50971748,102620.0,102610.0,0.30411016]
[1762897659970,0.53167934,102620.0,102610.0,0.30411016]
[1762897662075,0.53167934,102620.0,102610.0,0.04807803]
[1762897662377,0.53167934,102620.0,102610.0,0.00219803]
[1762897662572,0.53167934,102620.0,102610.0,0.12279903]
[1762897662978,0.69022047,102620.0,102610.0,0.00219803]
[1762897663276,0.53167934,102620.0,102610.0,0.00219803]
[1762897663882,0.53167934,102620.0,102610.0,0.09968903]
[1762897664079,0.53267934,102620.0,102610.0,0.09968903]
[1762897664475,0.53367934,102620.0,102610.0,0.09968903]
[1762897664673,0.53367934,102620.0,102610.0,0.00219803]
[1762897665177,0.53367934,102620.0,102610.0,0.09968903]
[1762897665981,0.69222047,102620.0,102610.0,0.00219803]
[1762897666178,0.69222047,102620.0,102600.0,0.00014598]
[1762897666179,0.154851,102610.0,102600.0,0.00014598]
[1762897666377,1.06755399,102610.0,102600.0,0.00014598]
[1762897666773,0.53761286,102610.0,102600.0,0.30426564]
[1762897667073,0.42726186,102610.0,102600.0,0.47640677]
[1762897667275,0.79866186,102610.0,102600.0,0.47640677]
[1762897667672,0.79866186,102610.0,102600.0,0.31786564]
[1762897667873,0.79866186,102610.0,102600.0,0.47640677]
[1762897668068,0.79866186,102610.0,102600.0,0.31786564]
[1762897668583,0.79866186,102610.0,102600.0,0.47640677]
[1762897668584,0.4053,102610.0,102600.0,0.47640677]
[1762897669083,0.44005411,102610.0,102600.0,0.15932451]
[1762897669282,0.53754511,102610.0,102600.0,0.22036514]
[1762897669785,0.90890511,102610.0,102600.0,0.20676514]
[1762897670578,0.90890511,102610.0,102600.0,0.04822401]
[1762897670784,0.90890511,102610.0,102600.0,0.00234401]
[1762897673489,0.90890511,102610.0,102600.0,0.20366514]
[1762897673687,0.90890511,102610.0,102600.0,0.30116564]
[1762897674490,0.90890511,102610.0,102600.0,0.02392401]
[1762897674685,0.90890511,102610.0,102600.0,0.18246514]
[1762897674889,0.887011,102610.0,102600.0,0.18240087]
[1762897675089,0.90887937,102610.0,102600.0,0.18240087]
[1762897675389,0.90887937,102610.0,102600.0,0.20360087]
[1762897676089,0.90887937,102610.0,102600.0,0.30110137]
[1762897676490,1.06735623,102610.0,102600.0,0.30110137]
[1762897676687,0.90887937,102610.0,102600.0,0.20360087]
[1762897676885,0.90887937,102610.0,102600.0,0.27990137]
[1762897677393,0.90887937,102610.0,102600.0,0.18240087]
[1762897677588,1.06735623,102610.0,102600.0,0.16082087]
[1762897680187,1.06735623,102610.0,102600.0,0.00014598]
[1762897680383,0.15455,102590.0,102580.0,0.30216996]
[1762897680585,0.87615,102590.0,102580.0,0.47672485]
[1762897680891,1.24751,102590.0,102580.0,0.47672485]
[1762897682495,1.24751,102590.0,102580.0,0.47872485]
[1762897682694,1.24751,102590.0,102580.0,0.48072485]
[1762897683693,1.24751,102590.0,102580.0,0.46684485]
[1762897684090,1.24751,102590.0,102580.0,0.34609175]
[1762897684396,1.40598686,102590.0,102580.0,0.16467489]
[1762897684697,1.40598686,102590.0,102580.0,0.00619803]
[1762897684995,1.40598686,102590.0,102580.0,0.16467489]
[1762897685896,1.24751,102590.0,102580.0,0.46685125]
[1762897686487,1.24751,102590.0,102580.0,0.16467489]
[1762897686800,1.26935019,102590.0,102580.0,0.21085489]
[1762897687389,1.26935019,102590.0,102580.0,0.30837439]
[1762897687899,1.26935019,102590.0,102580.0,0.21085489]
[1762897688097,1.42782705,102590.0,102580.0,0.16467489]
[1762897691300,1.42782705,102590.0,102580.0,0.21085489]
[1762897691501,1.26935019,102590.0,102580.0,0.21085489]
[1762897691697,1.42782705,102590.0,102580.0,0.21085489]
[1762897692393,1.42782705,102590.0,102580.0,0.004]
[1762897692701,0.1554895,102580.0,102570.0,0.15862284]
[1762897692998,0.67476636,102580.0,102570.0,0.15862284]
[1762897693196,0.67476636,102580.0,102570.0,0.18156284]
[1762897693599,0.69658615,102580.0,102570.0,0.15862284]
[1762897693898,0.5162895,102580.0,102570.0,0.32140987]
[1762897694294,0.8876495,102580.0,102570.0,0.32140987]
[1762897694698,0.8876495,102580.0,102570.0,0.16293301]
[1762897695002,0.8876495,102580.0,102570.0,0.32140987]
[1762897695599,0.8876495,102580.0,102570.0,0.32440987]
[1762897696292,0.5162895,102580.0,102570.0,0.32440987]
[1762897696592,0.8876895,102580.0,102570.0,0.32440987]
[1762897697000,0.41877,102580.0,102570.0,0.32440987]
[1762897697202,0.77638,102580.0,102570.0,0.32440987]
[1762897698093,0.8877595,102580.0,102570.0,0.32440987]
[1762897698299,0.8877595,102580.0,102570.0,0.22688087]
[1762897698597,0.8877595,102580.0,102570.0,0.32440987]
[1762897699390,0.8738995,102580.0,102570.0,0.32440987]
[1762897700194,0.77638,102580.0,102570.0,0.32440987]
[1762897700396,0.79822733,102580.0,102570.0,0.32440987]
[1762897701491,0.89574683,102580.0,102570.0,0.32440987]
[1762897701696,0.8738995,102580.0,102570.0,0.32440987]
[1762897702201,0.89574991,102580.0,102570.0,0.32440987]
[1762897702500,0.8738995,102580.0,102570.0,0.32440987]
[1762897702696,0.8806095,102580.0,102570.0,0.32440987]
[1762897703901,0.9024639,102580.0,102570.0,0.32440987]
[1762897704500,0.5243539,102580.0,102570.0,0.32440987]
[1762897704697,0.40498,102580.0,102570.0,0.48288673]
[1762897704895,0.5103695,102580.0,102570.0,0.16593301]
[1762897705102,0.5024995,102580.0,102570.0,0.32440987]
[1762897706009,0.40498,102580.0,102570.0,0.32440987]
[1762897706604,0.5024995,102580.0,102570.0,0.32440987]
[1762897710203,0.40498,102580.0,102570.0,0.48288673]
[1762897710407,0.5024995,102580.0,102570.0,0.48288673]
[1762897710605,0.5024995,102580.0,102570.0,0.32440987]
[1762897711211,0.5024995,102580.0,102570.0,0.32340987]
[1762897711713,0.40498,102580.0,102570.0,0.32340987]
[1762897711911,0.40498,102580.0,102570.0,0.32040987]
[1762897712112,0.40498,102580.0,102570.0,0.32140987]
[1762897712514,0.40498,102580.0,102570.0,0.47988673]
[1762897716811,0.3608,102580.0,102570.0,0.55001983]
[1762897717117,0.5042427,102590.0,102580.0,0.1549296]
[1762897717325,0.5042427,102590.0,102580.0,0.84540135]
[1762897718911,0.5042427,102590.0,102580.0,0.74888175]
[1762897719121,0.5122627,102590.0,102580.0,0.73551175]
[1762897719311,0.67073956,102590.0,102580.0,0.16167489]
[1762897719614,0.69262173,102590.0,102580.0,0.16167489]
[1762897720210,0.69262173,102590.0,102580.0,0.001]
[1762897720413,0.1561596,102580.0,102570.0,0.30018944]
[1762897720620,0.5169596,102580.0,102570.0,0.30238747]
[1762897720918,0.5169596,102580.0,102570.0,0.20486087]
[1762897721318,0.8882796,102580.0,102570.0,0.20486087]
[1762897721513,0.8882796,102580.0,102570.0,0.30238997]
[1762897722121,0.8882796,102580.0,102570.0,0.31675997]
[1762897723624,0.8882796,102580.0,102570.0,0.20586087]
[1762897724124,0.8882796,102580.0,102570.0,0.30338997]
[1762897728230,0.9101266,102580.0,102570.0,0.30338997]
[1762897728532,0.9101266,102580.0,102570.0,0.14491311]
[1762897728725,0.9101266,102580.0,102570.0,0.30338997]
[1762897729033,0.8882796,102580.0,102570.0,0.30338997]
[1762897729224,0.91012716,102580.0,102570.0,0.30338997]
[1762897729630,0.8882796,102580.0,102570.0,0.30338997]
[1762897730234,0.91012216,102580.0,102570.0,0.30338997]
[1762897731637,0.8882796,102580.0,102570.0,0.30338997]
[1762897731827,0.9101232,102580.0,102570.0,0.30338997]
[1762897735038,0.9101232,102580.0,102570.0,0.20586087]
[1762897735638,0.9101232,102580.0,102570.0,0.30338997]
[1762897736831,0.9101232,102580.0,102570.0,0.30346482]
[1762897737433,0.9101232,102580.0,102570.0,0.20593572]
[1762897737633,0.9101232,102580.0,102570.0,0.30346482]
[1762897742236,0.9101232,102580.0,102570.0,0.14526311]
[1762897742742,0.9101232,102580.0,102570.0,0.12382311]
[1762897744044,0.9101232,102580.0,102570.0,0.30381482]
[1762897745243,0.9101232,102580.0,102570.0,0.10087311]
[1762897745445,0.9101232,102580.0,102570.0,0.12382311]
[1762897745746,0.9101232,102580.0,102570.0,0.14526311]
[1762897748356,0.9101232,102580.0,102570.0,0.30381482]
[1762897749445,0.9101232,102580.0,102570.0,0.14426311]
[1762897749645,0.9101232,102580.0,102570.0,0.30281482]
[1762897749850,0.9111232,102580.0,102570.0,0.30281482]
[1762897750239,0.8984132,102580.0,102570.0,0.15799311]
[1762897750549,0.8984132,102580.0,102570.0,0.31654482]
[1762897751646,0.9105532,102580.0,102570.0,0.31654482]
[1762897754548,0.9105532,102580.0,102570.0,0.30281482]
[1762897755749,0.9104332,102580.0,102570.0,0.30281482]
[1762897758754,0.8129136,102580.0,102570.0,0.31654482]
[1762897759250,0.9104332,102580.0,102570.0,0.31654482]
[1762897760252,0.5392332,102580.0,102570.0,0.31654482]
[1762897760454,0.9104332,102580.0,102570.0,0.31654482]
[1762897761152,0.9103932,102580.0,102570.0,0.31654482]
[1762897761454,0.5392332,102580.0,102570.0,0.31654482]
[1762897761655,0.9103932,102580.0,102570.0,0.31654482]
[1762897761953,0.9103932,102580.0,102570.0,0.30281482]
[1762897762452,0.9103932,102580.0,102570.0,0.31674482]
[1762897762957,0.8982532,102580.0,102570.0,0.31674482]
[1762897763252,0.8007336,102580.0,102570.0,0.31674482]
[1762897763555,0.8982531,102580.0,102570.0,0.31674482]
[1762897763757,0.8007336,102580.0,102570.0,0.31674482]
[1762897764255,0.8132736,102580.0,102570.0,0.31674482]
[1762897765043,0.4295736,102580.0,102570.0,0.47529653]
[1762897765248,0.4295736,102580.0,102570.0,0.31674482]
[1762897765857,0.40773,102580.0,102570.0,0.31674482]
[1762897766451,0.5052496,102580.0,102570.0,0.31674482]
[1762897766642,0.5177896,102580.0,102570.0,0.31674482]
[1762897766856,0.42027,102580.0,102570.0,0.31674482]
[1762897767156,0.40773,102580.0,102570.0,0.31674482]
[1762897768151,0.53958333,102580.0,102570.0,0.31674482]
[1762897768660,0.53958333,102580.0,102570.0,0.30281482]
[1762897769958,0.44206373,102580.0,102570.0,0.30281482]
[1762897770160,0.53958333,102580.0,102570.0,0.30281482]
[1762897771258,0.53958333,102580.0,102570.0,0.16089572]
[1762897771953,0.53958333,102580.0,102570.0,0.25842482]
[1762897772153,0.53958333,102580.0,102570.0,0.28098482]
[1762897773058,0.53958333,102580.0,102570.0,0.18345572]
[1762897773258,0.69813504,102580.0,102570.0,0.00234401]
[1762897773454,0.1510991,102570.0,102560.0,0.25608401]
[1762897773654,0.88521713,102570.0,102560.0,0.25681668]
[1762897773860,0.88521713,102570.0,102560.0,0.27937668]
[1762897774565,0.88521713,102570.0,102560.0,0.28037668]
[1762897775663,0.88521713,102570.0,102560.0,0.30254668]
[1762897778565,0.88521713,102570.0,102560.0,0.28037668]
[1762897778761,0.88521713,102570.0,102560.0,0.30254668]
[1762897779762,0.88521713,102570.0,102560.0,0.18284438]
[1762897779970,0.88521713,102570.0,102560.0,0.28038298]
[1762897782565,0.88521713,102570.0,102560.0,0.30255298]
[1762897784377,0.88521713,102570.0,102560.0,0.14400127]
[1762897784768,0.51409713,102570.0,102560.0,0.00173267]
[1762897785076,0.69442175,102570.0,102560.0,0.00173267]
[1762897785275,1.06550175,102570.0,102560.0,0.001]
[1762897785476,0.90695004,102570.0,102560.0,0.001]
[1762897785976,0.90695004,102570.0,102550.0,0.25634485]
[1762897785977,0.1524186,102560.0,102550.0,0.25634485]
[1762897786175,0.51541663,102560.0,102550.0,0.27963752]
[1762897786674,0.53718418,102560.0,102550.0,0.09853301]
[1762897786976,0.53718418,102560.0,102550.0,0.31574472]
[1762897786977,0.81072558,102560.0,102550.0,0.31574472]
[1762897787177,0.81072558,102560.0,102550.0,0.31774472]
[1762897787367,0.90826408,102560.0,102550.0,0.14526301]
[1762897787771,0.90826408,102560.0,102550.0,0.10053301]
[1762897788073,0.53718408,102560.0,102550.0,0.28264472]
[1762897788275,0.90826408,102560.0,102550.0,0.10153301]
[1762897788474,0.90826408,102560.0,102550.0,0.12409301]
[1762897788665,0.53718408,102560.0,102550.0,0.30481472]
[1762897789065,0.90826408,102560.0,102550.0,0.30481472]
[1762897789267,0.53718408,102560.0,102550.0,0.02654491]
[1762897789471,0.53718408,102560.0,102550.0,0.12409301]
[1762897789665,0.53718408,102560.0,102550.0,0.14626301]
[1762897789866,0.53718408,102560.0,102550.0,0.30486472]
[1762897790065,0.90826408,102560.0,102550.0,0.30486472]
[1762897790277,0.81072558,102560.0,102550.0,0.30486472]
[1762897790475,0.0975481,102550.0,102540.0,0.05874]
[1762897790675,0.36299803,102550.0,102540.0,0.21729171]
[1762897790881,0.48228819,102550.0,102540.0,0.21729171]
[1762897791170,0.48228819,102550.0,102540.0,0.05874]
[1762897791373,0.46054613,102550.0,102540.0,0.21729171]
[1762897791579,0.46065078,102550.0,102540.0,0.21929171]
[1762897792169,0.46065078,102550.0,102540.0,0.19707171]
[1762897792369,0.46065078,102550.0,102540.0,0.21929171]
[1762897792579,0.46065078,102550.0,102540.0,0.22229171]
[1762897792879,0.46065078,102550.0,102540.0,0.005]
[1762897793072,0.83173078,102550.0,102540.0,0.16355171]
[1762897793271,0.46065078,102550.0,102540.0,0.22229171]
[1762897793472,0.83173078,102550.0,102540.0,0.22229171]
[1762897793677,0.83173078,102550.0,102540.0,0.31984931]
[1762897793877,0.83173078,102550.0,102540.0,0.22229171]
[1762897794076,0.46065078,102550.0,102540.0,0.06374]
[1762897794382,0.83173078,102550.0,102540.0,0.22229171]
[1762897795472,0.83173078,102550.0,102540.0,0.31984931]
[1762897795875,0.36310268,102550.0,102540.0,0.47840102]
[1762897796184,0.36310268,102550.0,102540.0,0.31984931]
[1762897797384,0.46065078,102550.0,102540.0,0.31984931]
[1762897797876,0.36310268,102550.0,102540.0,0.31984931]
[1762897798183,0.46065078,102550.0,102540.0,0.31984931]
[1762897798884,0.46065078,102550.0,102540.0,0.4785433]
[1762897800275,0.46065078,102550.0,102540.0,0.1612976]
[1762897800480,0.46065078,102550.0,102540.0,0.4785433]
[1762897800677,0.46065078,102550.0,102540.0,0.31992045]
[1762897800894,0.46065078,102550.0,102540.0,0.4785433]
[1762897801075,0.36310268,102550.0,102540.0,0.4785433]
[1762897801273,0.36310268,102550.0,102540.0,0.8496233]
[1762897801477,0.36310268,102550.0,102540.0,0.5323776]
[1762897801785,0.00010465,102550.0,102540.0,0.8496233]
[1762897801979,0.00010465,102550.0,102540.0,1.00824615]
[1762897802487,0.00010465,102550.0,102540.0,1.36904615]
[1762897803072,0.00010465,102550.0,102540.0,1.61284615]
[1762897803277,0.00014598,102560.0,102550.0,0.1563381]
[1762897803592,0.00014598,102560.0,102550.0,0.54362227]
[1762897803782,0.00014598,102560.0,102550.0,0.4735838]
[1762897803986,0.00234401,102560.0,102550.0,0.8446638]
[1762897804286,0.00014598,102560.0,102550.0,1.2054638]
[1762897804585,0.00014598,102560.0,102550.0,1.27550227]
[1762897804776,0.3608,102570.0,102560.0,0.1563286]
[1762897804981,0.36299803,102570.0,102560.0,0.4735743]
[1762897805983,0.36299803,102570.0,102560.0,0.4745743]
[1762897806990,0.36299803,102570.0,102560.0,0.8456543]
[1762897807781,0.3608,102570.0,102560.0,0.8456543]
[1762897807981,0.36094598,102580.0,102570.0,0.1563191]
[1762897808181,0.36314401,102580.0,102570.0,0.31494195]
[1762897808787,0.46066361,102580.0,102570.0,0.21741285]
[1762897808982,1.14994931,102580.0,102570.0,0.01393]
[1762897809184,1.17167268,102580.0,102570.0,0.01393]
[1762897809390,1.17267268,102580.0,102570.0,0.01393]
[1762897809692,1.17267268,102580.0,102550.0,0.21755883]
[1762897809693,0.0975386,102560.0,102550.0,0.21755883]
[1762897809889,0.0975386,102560.0,102550.0,0.00014598]
[1762897809890,1.35099948,102560.0,102550.0,0.00014598]
[1762897810092,1.53134246,102560.0,102550.0,0.00014598]
[1762897810284,0.097548,102550.0,102540.0,0.19451285]
[1762897810606,0.46054603,102550.0,102540.0,0.21708285]
[1762897811297,0.36299803,102550.0,102540.0,0.4732632]
[1762897811483,0.36199803,102550.0,102540.0,0.1570175]
[1762897811683,0.36199803,102550.0,102540.0,0.4742632]
[1762897811991,0.3608,102550.0,102540.0,0.8475032]
[1762897812186,0.36094598,102560.0,102550.0,0.156338]
[1762897812490,0.36287668,102560.0,102550.0,0.4745837]
[1762897812687,0.36287668,102560.0,102550.0,0.31596085]
[1762897813396,0.36287668,102560.0,102550.0,0.4745837]
[1762897813690,0.36287668,102560.0,102550.0,0.31596085]
[1762897813894,0.36287668,102560.0,102550.0,0.4745837]
[1762897814087,0.36287668,102560.0,102550.0,0.31596085]
[1762897814293,0.36287668,102560.0,102550.0,0.68824085]
[1762897814598,0.36287668,102560.0,102550.0,0.529618]
[1762897814798,0.36287668,102560.0,102550.0,0.68824085]
[1762897815592,0.00014598,102560.0,102550.0,0.8468637]
[1762897815799,0.3608,102570.0,102560.0,0.1563284]
[1762897815997,0.3627307,102570.0,102560.0,0.4745741]
[1762897817283,0.3637307,102570.0,102560.0,0.4745741]
[1762897817494,0.3647307,102570.0,102560.0,0.4745741]
[1762897819299,0.0039307,102570.0,102560.0,0.4745741]
[1762897819800,0.002,102570.0,102560.0,0.4745741]
[1762897823000,0.0039307,102570.0,102560.0,0.4745741]
[1762897823204,0.3647307,102570.0,102560.0,0.4745741]
[1762897823799,0.36094598,102580.0,102560.0,0.4745741]
[1762897824007,0.3608,102590.0,102580.0,0.1543794]
[1762897824296,0.3627307,102590.0,102580.0,0.4726251]
[1762897826497,0.4602406,102590.0,102580.0,0.3751057]
[1762897826803,0.3667307,102590.0,102580.0,0.4726251]
[1762897827705,0.3667307,102590.0,102580.0,0.05786]
[1762897827706,0.62286345,102590.0,102580.0,0.05786]
[1762897828005,0.62286345,102590.0,102580.0,0.21648285]
[1762897828006,0.4642406,102590.0,102580.0,0.21648285]
[1762897828401,0.4642406,102590.0,102580.0,0.4726251]
[1762897828402,0.3667307,102590.0,102580.0,0.4726251]
[1762897828603,0.4642406,102590.0,102580.0,0.3751057]
[1762897829502,0.4642406,102590.0,102570.0,0.00014598]
[1762897829503,0.0975194,102580.0,102570.0,0.00014598]
[1762897829700,0.6407842,102580.0,102570.0,0.00014598]
[1762897830104,0.79940705,102580.0,102570.0,0.00014598]
[1762897830299,0.0975289,102570.0,102560.0,0.17255285]
[1762897830504,0.99152245,102570.0,102560.0,0.17255285]
[1762897830698,0.99152245,102570.0,102560.0,0.01393]
[1762897831304,0.8328996,102570.0,102560.0,0.21646285]
[1762897831502,0.99152245,102570.0,102560.0,0.31400125]
[1762897831703,0.4602596,102570.0,102560.0,0.31400125]
[1762897832004,0.8328596,102570.0,102560.0,0.21646285]
[1762897832503,0.8328596,102570.0,102560.0,0.21746285]
[1762897832899,0.99148245,102570.0,102560.0,0.21746285]
[1762897833101,0.99148245,102570.0,102560.0,0.05784]
[1762897833297,0.8338596,102570.0,102560.0,0.05784]
[1762897833504,0.99348245,102570.0,102560.0,0.05784]